[Event "*** SCC Grand Prix: Titled Tuesday Blitz"]
[Site "Chess.com"]
[Date "2020.06.23"]
[Round "4"]
[White "Msb2"]
[Black "Grischuk"]
[Result "1-0"]
[WhiteElo "2845"]
[BlackElo "3096"]
[TimeControl "180+1"]
[EndTime "10:38:58 PDT"]
[Termination "Msb2 won by resignation"]

1. d4 {[%clk 0:03:00.9]} 1... Nf6 {[%clk 0:02:56.2]} 2. c4 {[%clk 0:03:01.1]}
2... e6 {[%clk 0:02:56.1]} 3. Nc3 {[%clk 0:03:01.6]} 3... Bb4 {[%clk 0:02:55.5]}
4. e3 {[%clk 0:03:02.2]} 4... O-O {[%clk 0:02:51.7]} 5. Bd2 {[%clk 0:03:02.6]}
5... b6 {[%clk 0:02:45]} 6. Nf3 {[%clk 0:03:02]} 6... Bb7 {[%clk 0:02:44]} 7.
Bd3 {[%clk 0:03:01.9]} 7... c5 {[%clk 0:02:40.7]} 8. a3 {[%clk 0:03:01.8]} 8...
Bxc3 {[%clk 0:02:34.9]} 9. Bxc3 {[%clk 0:03:02.7]} 9... d6 {[%clk 0:02:32.1]}
10. b4 {[%clk 0:03:00.8]} 10... Nbd7 {[%clk 0:02:25.5]} 11. O-O {[%clk
0:03:00.1]} 11... Qe7 {[%clk 0:02:13.4]} 12. Qe2 {[%clk 0:02:58]} 12... e5
{[%clk 0:02:09.2]} 13. dxe5 {[%clk 0:02:30.3]} 13... dxe5 {[%clk 0:02:06.5]} 14.
e4 {[%clk 0:02:28.4]} 14... Ne8 {[%clk 0:02:00.9]} 15. Bc2 {[%clk 0:01:43.9]}
15... Nc7 {[%clk 0:01:56.8]} 16. Ba4 {[%clk 0:01:33.3]} 16... f6 {[%clk
0:01:35.7]} 17. Rfd1 {[%clk 0:01:33.3]} 17... Rad8 {[%clk 0:01:32.3]} 18. Nh4
{[%clk 0:00:56.4]} 18... Nb8 {[%clk 0:00:52.4]} 19. Nf5 {[%clk 0:00:55.2]} 19...
Qe6 {[%clk 0:00:53]} 20. bxc5 {[%clk 0:00:48.7]} 20... bxc5 {[%clk 0:00:50.4]}
21. Ba5 {[%clk 0:00:48.2]} 21... Nba6 {[%clk 0:00:42.6]} 22. Bb5 {[%clk
0:00:43.4]} 22... Rxd1+ {[%clk 0:00:15.8]} 23. Rxd1 {[%clk 0:00:44.3]} 23... Kh8
{[%clk 0:00:09.1]} 24. Rd6 {[%clk 0:00:41.7]} 24... Qg8 {[%clk 0:00:08.3]} 25.
Rd7 {[%clk 0:00:32.2]} 25... g6 {[%clk 0:00:05]} 26. Bxc7 {[%clk 0:00:24.2]}
26... g5 {[%clk 0:00:02.6]} 1-0

[Event "*** SCC Grand Prix: Titled Tuesday Blitz"]
[Site "Chess.com"]
[Date "2020.06.23"]
[Round "4"]
[White "ARTHURMOTIVATOR"]
[Black "ALEXJR20"]
[Result "1-0"]
[WhiteElo "2347"]
[BlackElo "2204"]
[TimeControl "180+1"]
[EndTime "10:39:03 PDT"]
[Termination "ARTHURMOTIVATOR won by checkmate"]

1. e4 {[%clk 0:03:00.9]} 1... Nc6 {[%clk 0:02:59]} 2. Nc3 {[%clk 0:02:58.9]}
2... d5 {[%clk 0:02:59.1]} 3. exd5 {[%clk 0:02:49.7]} 3... Nb4 {[%clk
0:02:59.3]} 4. Bb5+ {[%clk 0:02:39.1]} 4... Bd7 {[%clk 0:02:58.7]} 5. Bc4 {[%clk
0:02:37.7]} 5... Bf5 {[%clk 0:02:53]} 6. d3 {[%clk 0:02:33.2]} 6... Nf6 {[%clk
0:02:51.5]} 7. Nf3 {[%clk 0:02:06]} 7... Nbxd5 {[%clk 0:02:51.1]} 8. O-O {[%clk
0:01:59.9]} 8... e6 {[%clk 0:02:50.7]} 9. h3 {[%clk 0:01:55.7]} 9... h6 {[%clk
0:02:49.6]} 10. Re1 {[%clk 0:01:54.4]} 10... c6 {[%clk 0:02:41.1]} 11. Ne5
{[%clk 0:01:38.9]} 11... Bd6 {[%clk 0:02:37.4]} 12. d4 {[%clk 0:01:31.8]} 12...
O-O {[%clk 0:02:36.1]} 13. Bb3 {[%clk 0:01:28.7]} 13... a5 {[%clk 0:02:35.3]}
14. a4 {[%clk 0:01:27.2]} 14... Nb4 {[%clk 0:02:28.9]} 15. Bf4 {[%clk
0:01:08.8]} 15... Qc7 {[%clk 0:02:27.7]} 16. Bh2 {[%clk 0:00:50.3]} 16... Nfd5
{[%clk 0:02:24.6]} 17. Ne4 {[%clk 0:00:41.8]} 17... Bxe4 {[%clk 0:02:17]} 18.
Rxe4 {[%clk 0:00:40.7]} 18... Rae8 {[%clk 0:02:02.5]} 19. c3 {[%clk 0:00:39.4]}
19... Na6 {[%clk 0:01:58.9]} 20. Bc2 {[%clk 0:00:38.4]} 20... Kh8 {[%clk
0:01:58]} 21. Qd3 {[%clk 0:00:36.4]} 21... f5 {[%clk 0:01:47.9]} 22. Re2 {[%clk
0:00:19.5]} 22... Kg8 {[%clk 0:01:43.6]} 23. Rae1 {[%clk 0:00:19.3]} 23... Bxe5
{[%clk 0:01:24]} 24. Bxe5 {[%clk 0:00:18.6]} 24... Qf7 {[%clk 0:01:22.2]} 25. f4
{[%clk 0:00:18.3]} 25... Rd8 {[%clk 0:01:07.1]} 26. Kh1 {[%clk 0:00:18.1]} 26...
Rfe8 {[%clk 0:01:07.1]} 27. Rg1 {[%clk 0:00:17.1]} 27... Nb8 {[%clk 0:01:06.9]}
28. g4 {[%clk 0:00:16.8]} 28... Nd7 {[%clk 0:00:57]} 29. gxf5 {[%clk 0:00:15.5]}
29... exf5 {[%clk 0:00:56]} 30. Rxg7+ {[%clk 0:00:13.1]} 30... Qxg7 {[%clk
0:00:53.2]} 31. Bxg7 {[%clk 0:00:13.1]} 31... Kxg7 {[%clk 0:00:54.1]} 32. Rg2+
{[%clk 0:00:12]} 32... Kh8 {[%clk 0:00:51.3]} 33. Qxf5 {[%clk 0:00:12]} 33...
N7f6 {[%clk 0:00:50]} 34. Qg6 {[%clk 0:00:10.6]} 34... Re1+ {[%clk 0:00:44.4]}
35. Kh2 {[%clk 0:00:09.9]} 35... Rd7 {[%clk 0:00:39.1]} 36. Qxh6+ {[%clk
0:00:09.6]} 36... Nh7 {[%clk 0:00:37.4]} 37. Bxh7 {[%clk 0:00:08.9]} 37... Rxh7
{[%clk 0:00:38.3]} 38. Qf8# {[%clk 0:00:08.8]} 1-0

[Event "*** SCC Grand Prix: Titled Tuesday Blitz"]
[Site "Chess.com"]
[Date "2020.06.23"]
[Round "4"]
[White "GMTalks_Youtube"]
[Black "TheNextLevelFan"]
[Result "1-0"]
[WhiteElo "2689"]
[BlackElo "2494"]
[TimeControl "180+1"]
[EndTime "10:39:05 PDT"]
[Termination "GMTalks_Youtube won by resignation"]

1. e4 {[%clk 0:03:00.9]} 1... e5 {[%clk 0:02:59.6]} 2. Nf3 {[%clk 0:03:00.8]}
2... Nc6 {[%clk 0:03:00.2]} 3. Bc4 {[%clk 0:03:00.5]} 3... Bc5 {[%clk
0:02:59.6]} 4. O-O {[%clk 0:02:59.6]} 4... Nf6 {[%clk 0:02:58.4]} 5. d3 {[%clk
0:02:59.6]} 5... O-O {[%clk 0:02:57.4]} 6. h3 {[%clk 0:02:57.2]} 6... d5 {[%clk
0:02:56]} 7. exd5 {[%clk 0:02:57.1]} 7... Nxd5 {[%clk 0:02:56.9]} 8. Re1 {[%clk
0:02:56.5]} 8... Nb6 {[%clk 0:02:51.7]} 9. Bb3 {[%clk 0:02:53.8]} 9... Bd6
{[%clk 0:02:36.9]} 10. Nbd2 {[%clk 0:02:46.4]} 10... a5 {[%clk 0:02:30.2]} 11.
a3 {[%clk 0:02:45]} 11... a4 {[%clk 0:02:30.5]} 12. Ba2 {[%clk 0:02:44.7]} 12...
Bf5 {[%clk 0:02:27.6]} 13. Ne4 {[%clk 0:02:41.2]} 13... Bg6 {[%clk 0:02:19.5]}
14. Bg5 {[%clk 0:02:38.2]} 14... Be7 {[%clk 0:02:15.5]} 15. Bd2 {[%clk
0:02:29.2]} 15... Bh5 {[%clk 0:02:03.8]} 16. Ng3 {[%clk 0:02:26.2]} 16... Bxf3
{[%clk 0:01:58.4]} 17. Qxf3 {[%clk 0:02:25.8]} 17... Nd4 {[%clk 0:01:52.4]} 18.
Qd1 {[%clk 0:02:25.3]} 18... Bd6 {[%clk 0:01:48.7]} 19. c3 {[%clk 0:02:13.3]}
19... Nc6 {[%clk 0:01:44.9]} 20. Qg4 {[%clk 0:02:10]} 20... Kh8 {[%clk
0:01:25.8]} 21. Rad1 {[%clk 0:02:08.8]} 21... Ne7 {[%clk 0:01:17.7]} 22. Qf3
{[%clk 0:01:44.8]} 22... f5 {[%clk 0:00:59.1]} 23. Qxb7 {[%clk 0:01:36.3]} 23...
f4 {[%clk 0:00:53.5]} 24. Ne4 {[%clk 0:01:35.3]} 24... f3 {[%clk 0:00:51.4]} 25.
g3 {[%clk 0:01:24.6]} 25... Rb8 {[%clk 0:00:45.6]} 26. Qa6 {[%clk 0:01:23.2]}
26... Ng6 {[%clk 0:00:37.9]} 27. d4 {[%clk 0:01:19]} 27... exd4 {[%clk
0:00:36.7]} 28. cxd4 {[%clk 0:01:17.8]} 28... h6 {[%clk 0:00:30.9]} 29. Qd3
{[%clk 0:01:16.3]} 29... Ne7 {[%clk 0:00:28.3]} 30. Bb1 {[%clk 0:01:10.6]} 30...
Nf5 {[%clk 0:00:28.4]} 31. Bc3 {[%clk 0:01:06.9]} 31... Nd5 {[%clk 0:00:28.3]}
32. Nd2 {[%clk 0:01:07.4]} 32... Qg5 {[%clk 0:00:16.4]} 33. Nxf3 {[%clk
0:01:05.9]} 33... Qh5 {[%clk 0:00:16.7]} 34. Kg2 {[%clk 0:00:56.2]} 34... Nxc3
{[%clk 0:00:14.9]} 35. bxc3 {[%clk 0:00:54.8]} 35... Rb2 {[%clk 0:00:15.3]} 36.
Re2 {[%clk 0:00:45.7]} 36... Rxe2 {[%clk 0:00:14.2]} 37. Qxe2 {[%clk 0:00:45.7]}
37... Nh4+ {[%clk 0:00:04.7]} 38. gxh4 {[%clk 0:00:42.1]} 1-0

[Event "*** SCC Grand Prix: Titled Tuesday Blitz"]
[Site "Chess.com"]
[Date "2020.06.23"]
[Round "4"]
[White "vova-79"]
[Black "Firegrizzly"]
[Result "0-1"]
[WhiteElo "2432"]
[BlackElo "2580"]
[TimeControl "180+1"]
[EndTime "10:39:05 PDT"]
[Termination "Firegrizzly won by resignation"]

1. d4 {[%clk 0:03:00.9]} 1... g6 {[%clk 0:03:00.9]} 2. Bf4 {[%clk 0:02:59.6]}
2... Bg7 {[%clk 0:03:01]} 3. e3 {[%clk 0:02:59.5]} 3... c5 {[%clk 0:03:00.9]} 4.
c3 {[%clk 0:02:58.9]} 4... Qb6 {[%clk 0:02:55.5]} 5. Qb3 {[%clk 0:02:58.2]} 5...
Nf6 {[%clk 0:02:53.4]} 6. Nd2 {[%clk 0:02:50.2]} 6... Nc6 {[%clk 0:02:52.4]} 7.
Ngf3 {[%clk 0:02:46.7]} 7... O-O {[%clk 0:02:49.1]} 8. h3 {[%clk 0:02:45.8]}
8... d6 {[%clk 0:02:46.1]} 9. Be2 {[%clk 0:02:41.9]} 9... Be6 {[%clk 0:02:44.2]}
10. Qxb6 {[%clk 0:02:41]} 10... axb6 {[%clk 0:02:44]} 11. a3 {[%clk 0:02:41.5]}
11... Na5 {[%clk 0:02:35.8]} 12. O-O {[%clk 0:02:39.4]} 12... Rfc8 {[%clk
0:02:33]} 13. Rfe1 {[%clk 0:02:25.4]} 13... Nb3 {[%clk 0:02:32.5]} 14. Nxb3
{[%clk 0:02:24.2]} 14... Bxb3 {[%clk 0:02:33.4]} 15. Nd2 {[%clk 0:02:22]} 15...
Ba4 {[%clk 0:02:29.1]} 16. Nc4 {[%clk 0:02:19.4]} 16... Nd7 {[%clk 0:02:25.4]}
17. Bg4 {[%clk 0:02:12.8]} 17... f5 {[%clk 0:02:24.9]} 18. Bf3 {[%clk
0:02:08.8]} 18... Bc6 {[%clk 0:02:24.8]} 19. Nd2 {[%clk 0:01:51.1]} 19... Bxf3
{[%clk 0:02:20.7]} 20. Nxf3 {[%clk 0:01:50.3]} 20... b5 {[%clk 0:02:20.2]} 21.
dxc5 {[%clk 0:01:47.5]} 21... Nxc5 {[%clk 0:02:17.6]} 22. Rad1 {[%clk
0:01:37.2]} 22... Na4 {[%clk 0:02:13.1]} 23. Rd2 {[%clk 0:01:35.7]} 23... Nxc3
{[%clk 0:02:11.7]} 24. bxc3 {[%clk 0:01:32.3]} 24... Bxc3 {[%clk 0:02:12.6]} 25.
Rb1 {[%clk 0:01:28.1]} 25... Bxd2 {[%clk 0:02:11.4]} 26. Nxd2 {[%clk 0:01:27.9]}
26... Rxa3 {[%clk 0:02:09.7]} 27. Rxb5 {[%clk 0:01:26.7]} 27... Rc1+ {[%clk
0:02:06.5]} 28. Kh2 {[%clk 0:01:25.7]} 28... Rc2 {[%clk 0:02:03.7]} 29. e4
{[%clk 0:01:15.1]} 29... e5 {[%clk 0:02:00.2]} 30. Bh6 {[%clk 0:01:11.9]} 30...
f4 {[%clk 0:02:00]} 31. Nf3 {[%clk 0:01:08.7]} 31... Ra7 {[%clk 0:01:39.3]} 32.
Kg1 {[%clk 0:00:55.3]} 32... Rc1+ {[%clk 0:01:32.3]} 33. Kh2 {[%clk 0:00:54.1]}
33... Raa1 {[%clk 0:01:30.6]} 34. g3 {[%clk 0:00:50]} 34... Rc2 {[%clk
0:01:26.5]} 35. Kg2 {[%clk 0:00:48.9]} 35... Raa2 {[%clk 0:01:23.1]} 36. gxf4
{[%clk 0:00:48.3]} 36... Rxf2+ {[%clk 0:01:22.7]} 37. Kg3 {[%clk 0:00:48.8]}
37... exf4+ {[%clk 0:01:12.8]} 38. Kg4 {[%clk 0:00:48.8]} 38... Ra3 {[%clk
0:01:09.2]} 39. Ng5 {[%clk 0:00:47.2]} 39... Rg2+ {[%clk 0:00:44.8]} 40. Kh4
{[%clk 0:00:46.2]} 40... f3 {[%clk 0:00:41.9]} 41. Rxb7 {[%clk 0:00:42.8]} 41...
Rxg5 {[%clk 0:00:41.4]} 42. Kxg5 {[%clk 0:00:40.8]} 42... f2 {[%clk 0:00:39.3]}
43. Rg7+ {[%clk 0:00:36.9]} 43... Kf8 {[%clk 0:00:38.5]} 44. Rf7+ {[%clk
0:00:31]} 44... Kxf7 {[%clk 0:00:38.1]} 0-1

[Event "*** SCC Grand Prix: Titled Tuesday Blitz"]
[Site "Chess.com"]
[Date "2020.06.23"]
[Round "4"]
[White "Willychess95"]
[Black "SergeyKarjakin"]
[Result "0-1"]
[WhiteElo "2560"]
[BlackElo "2946"]
[TimeControl "180+1"]
[EndTime "10:39:06 PDT"]
[Termination "SergeyKarjakin won on time"]

1. e4 {[%clk 0:02:59.8]} 1... c5 {[%clk 0:02:58.1]} 2. Nf3 {[%clk 0:02:58.7]}
2... d6 {[%clk 0:02:58.7]} 3. d4 {[%clk 0:02:54.6]} 3... cxd4 {[%clk 0:02:59.6]}
4. Nxd4 {[%clk 0:02:55]} 4... Nf6 {[%clk 0:03:00.1]} 5. Nc3 {[%clk 0:02:52.5]}
5... a6 {[%clk 0:03:00.3]} 6. Bg5 {[%clk 0:02:51.8]} 6... e6 {[%clk 0:02:59.9]}
7. f4 {[%clk 0:02:49.3]} 7... Qc7 {[%clk 0:03:00.1]} 8. Qf3 {[%clk 0:02:42.8]}
8... b5 {[%clk 0:02:58.6]} 9. O-O-O {[%clk 0:02:39.5]} 9... Bb7 {[%clk 0:02:59]}
10. f5 {[%clk 0:02:30.7]} 10... e5 {[%clk 0:02:55.8]} 11. Bxf6 {[%clk
0:02:26.3]} 11... gxf6 {[%clk 0:02:56.7]} 12. Nde2 {[%clk 0:02:18.1]} 12... Nd7
{[%clk 0:02:49.3]} 13. Nd5 {[%clk 0:02:14.7]} 13... Bxd5 {[%clk 0:02:49.2]} 14.
Rxd5 {[%clk 0:02:15.6]} 14... Rc8 {[%clk 0:02:49.1]} 15. Qc3 {[%clk 0:01:58.9]}
15... Qb7 {[%clk 0:02:48.4]} 16. Qf3 {[%clk 0:01:44.2]} 16... h5 {[%clk
0:02:47.2]} 17. Rd1 {[%clk 0:01:37.2]} 17... b4 {[%clk 0:02:45.8]} 18. Kb1
{[%clk 0:01:30.8]} 18... a5 {[%clk 0:02:42]} 19. Ng3 {[%clk 0:01:03.3]} 19... h4
{[%clk 0:02:40.7]} 20. Nh5 {[%clk 0:01:02.5]} 20... a4 {[%clk 0:02:39.2]} 21. g4
{[%clk 0:00:56.1]} 21... hxg3 {[%clk 0:02:34.3]} 22. hxg3 {[%clk 0:00:55.4]}
22... Rg8 {[%clk 0:02:17.9]} 23. Qd3 {[%clk 0:00:44.3]} 23... Qc6 {[%clk
0:02:05.2]} 24. Rh2 {[%clk 0:00:41.3]} 24... a3 {[%clk 0:02:01.2]} 25. Qb5
{[%clk 0:00:36.3]} 25... Ke7 {[%clk 0:01:33.1]} 26. Qxc6 {[%clk 0:00:33.5]}
26... Rxc6 {[%clk 0:01:34]} 27. Bb5 {[%clk 0:00:32.8]} 27... Rc7 {[%clk
0:01:34.1]} 28. Rhd2 {[%clk 0:00:27.2]} 28... Nc5 {[%clk 0:01:14.4]} 29. Rxd6
{[%clk 0:00:20.3]} 29... Bg7 {[%clk 0:01:14.4]} 30. R6d5 {[%clk 0:00:12.3]}
30... Rb8 {[%clk 0:01:04.3]} 31. Bd3 {[%clk 0:00:08.7]} 31... Bh6 {[%clk
0:01:02.8]} 32. b3 {[%clk 0:00:06.7]} 32... Be3 {[%clk 0:00:59]} 33. g4 {[%clk
0:00:04.9]} 33... Rg8 {[%clk 0:00:57.1]} 34. Bb5 {[%clk 0:00:03.7]} 34... Bd4
{[%clk 0:00:55]} 0-1

[Event "*** SCC Grand Prix: Titled Tuesday Blitz"]
[Site "Chess.com"]
[Date "2020.06.23"]
[Round "4"]
[White "ExtremeLearner"]
[Black "renehp"]
[Result "0-1"]
[WhiteElo "2185"]
[BlackElo "2403"]
[TimeControl "180+1"]
[EndTime "10:39:06 PDT"]
[Termination "renehp won by checkmate"]

1. d4 {[%clk 0:03:00.9]} 1... d5 {[%clk 0:02:57.8]} 2. Bf4 {[%clk 0:03:00]} 2...
Nf6 {[%clk 0:02:57.4]} 3. e3 {[%clk 0:03:00.1]} 3... c5 {[%clk 0:02:57.3]} 4. c3
{[%clk 0:02:59.8]} 4... Nc6 {[%clk 0:02:56.3]} 5. Nd2 {[%clk 0:02:58.2]} 5... e6
{[%clk 0:02:56.1]} 6. Ngf3 {[%clk 0:02:51.5]} 6... Bd6 {[%clk 0:02:56.2]} 7. Bg3
{[%clk 0:02:42.2]} 7... Qc7 {[%clk 0:02:56.1]} 8. dxc5 {[%clk 0:02:40.7]} 8...
Bxg3 {[%clk 0:02:55.3]} 9. hxg3 {[%clk 0:02:41.6]} 9... a5 {[%clk 0:02:53.9]}
10. Bb5 {[%clk 0:02:39.2]} 10... O-O {[%clk 0:02:53.3]} 11. a4 {[%clk
0:02:31.9]} 11... e5 {[%clk 0:02:52.8]} 12. Qc2 {[%clk 0:02:21.2]} 12... e4
{[%clk 0:02:52.5]} 13. Nd4 {[%clk 0:02:20.6]} 13... Ne5 {[%clk 0:02:52.8]} 14.
b4 {[%clk 0:02:15.2]} 14... Bd7 {[%clk 0:02:52.1]} 15. Be2 {[%clk 0:02:08]}
15... h6 {[%clk 0:02:44.9]} 16. O-O {[%clk 0:01:56.3]} 16... Neg4 {[%clk
0:02:40.7]} 17. N2b3 {[%clk 0:01:50.6]} 17... Qe5 {[%clk 0:02:36.9]} 18. Bxg4
{[%clk 0:01:31.6]} 18... Nxg4 {[%clk 0:02:36.3]} 19. Rfe1 {[%clk 0:01:25]} 19...
Qh5 {[%clk 0:02:06.8]} 20. Kf1 {[%clk 0:01:23.3]} 20... axb4 {[%clk 0:01:56.5]}
21. cxb4 {[%clk 0:01:20.9]} 21... Bxa4 {[%clk 0:01:55.8]} 22. Ke2 {[%clk
0:01:15.1]} 22... Ne5+ {[%clk 0:01:45.7]} 23. Kd2 {[%clk 0:01:13.4]} 23... Bxb3
{[%clk 0:01:30]} 24. Qxb3 {[%clk 0:01:06.2]} 24... Nc4+ {[%clk 0:01:25.2]} 25.
Kc3 {[%clk 0:01:02.5]} 25... Qh2 {[%clk 0:01:20.9]} 26. Rxa8 {[%clk 0:00:33.6]}
26... Rxa8 {[%clk 0:01:21.8]} 27. Qc2 {[%clk 0:00:32.5]} 27... Ra3+ {[%clk
0:01:13.7]} 28. Nb3 {[%clk 0:00:32.5]} 28... Qh5 {[%clk 0:01:00.4]} 29. Qd1
{[%clk 0:00:16.6]} 29... Qf5 {[%clk 0:00:53.1]} 30. Re2 {[%clk 0:00:07.8]} 30...
Qd7 {[%clk 0:00:52.9]} 31. Qd4 {[%clk 0:00:06.9]} 31... Qa4 {[%clk 0:00:50.3]}
32. Qxd5 {[%clk 0:00:05.2]} 32... Qxb3+ {[%clk 0:00:47.4]} 33. Kd4 {[%clk
0:00:05.3]} 33... Qd3# {[%clk 0:00:47.6]} 0-1

[Event "*** SCC Grand Prix: Titled Tuesday Blitz"]
[Site "Chess.com"]
[Date "2020.06.23"]
[Round "4"]
[White "esrosenberg"]
[Black "Iball95"]
[Result "1-0"]
[WhiteElo "2154"]
[BlackElo "2555"]
[TimeControl "180+1"]
[EndTime "10:39:12 PDT"]
[Termination "esrosenberg won by checkmate"]

1. Nf3 {[%clk 0:03:00.8]} 1... g6 {[%clk 0:02:52.4]} 2. d4 {[%clk 0:02:57.6]}
2... Bg7 {[%clk 0:02:52.5]} 3. c4 {[%clk 0:02:57.2]} 3... Nf6 {[%clk 0:02:52.5]}
4. Nc3 {[%clk 0:02:56.3]} 4... O-O {[%clk 0:02:52.7]} 5. e4 {[%clk 0:02:56.6]}
5... d6 {[%clk 0:02:52.3]} 6. h3 {[%clk 0:02:57.2]} 6... c5 {[%clk 0:02:51]} 7.
d5 {[%clk 0:02:57.4]} 7... b5 {[%clk 0:02:51]} 8. cxb5 {[%clk 0:02:56.3]} 8...
a6 {[%clk 0:02:51.2]} 9. a4 {[%clk 0:02:56.8]} 9... axb5 {[%clk 0:02:50.1]} 10.
Bxb5 {[%clk 0:02:55.1]} 10... Ba6 {[%clk 0:02:50.4]} 11. Qe2 {[%clk 0:02:51.3]}
11... Bxb5 {[%clk 0:02:47.2]} 12. Nxb5 {[%clk 0:02:51.1]} 12... Nbd7 {[%clk
0:02:41]} 13. O-O {[%clk 0:02:50]} 13... Qb6 {[%clk 0:02:40.9]} 14. Ra3 {[%clk
0:02:33.8]} 14... Rfb8 {[%clk 0:02:40.1]} 15. Rd1 {[%clk 0:02:22.1]} 15... Ne8
{[%clk 0:02:29.4]} 16. Qc4 {[%clk 0:02:09]} 16... Nc7 {[%clk 0:02:28]} 17. Nxc7
{[%clk 0:02:03.8]} 17... Qxc7 {[%clk 0:02:28.9]} 18. b3 {[%clk 0:02:00]} 18...
Rb4 {[%clk 0:02:24.3]} 19. Qe2 {[%clk 0:01:48.2]} 19... c4 {[%clk 0:02:15.7]}
20. bxc4 {[%clk 0:01:42.2]} 20... Raxa4 {[%clk 0:02:05]} 21. Rxa4 {[%clk
0:01:26]} 21... Rxa4 {[%clk 0:02:03.7]} 22. c5 {[%clk 0:01:16.7]} 22... Nxc5
{[%clk 0:02:00.5]} 23. e5 {[%clk 0:01:01]} 23... dxe5 {[%clk 0:01:34.3]} 24. Qb5
{[%clk 0:01:00.8]} 24... Ra1 {[%clk 0:01:20]} 25. Qe8+ {[%clk 0:00:44]} 25...
Bf8 {[%clk 0:01:18.6]} 26. Ng5 {[%clk 0:00:39.9]} 26... e6 {[%clk 0:01:08.2]}
27. dxe6 {[%clk 0:00:28.7]} 27... f6 {[%clk 0:00:59.8]} 28. Rd7 {[%clk
0:00:10.8]} 28... Rxc1+ {[%clk 0:00:57.4]} 29. Kh2 {[%clk 0:00:11]} 29... Nxd7
{[%clk 0:00:20.1]} 30. Qf7+ {[%clk 0:00:10.7]} 30... Kh8 {[%clk 0:00:20.2]} 31.
Qxh7# {[%clk 0:00:11.4]} 1-0

[Event "*** SCC Grand Prix: Titled Tuesday Blitz"]
[Site "Chess.com"]
[Date "2020.06.23"]
[Round "4"]
[White "PavelShkapenko"]
[Black "dopolian"]
[Result "1-0"]
[WhiteElo "2653"]
[BlackElo "2355"]
[TimeControl "180+1"]
[EndTime "10:39:16 PDT"]
[Termination "PavelShkapenko won by resignation"]

1. e4 {[%clk 0:01:51.8]} 1... e5 {[%clk 0:02:57.7]} 2. Nf3 {[%clk 0:01:51.2]}
2... Nc6 {[%clk 0:02:56.8]} 3. Bc4 {[%clk 0:01:50.1]} 3... Bc5 {[%clk
0:02:56.1]} 4. c3 {[%clk 0:01:50.2]} 4... Nf6 {[%clk 0:02:56.5]} 5. d4 {[%clk
0:01:50.7]} 5... exd4 {[%clk 0:02:56.8]} 6. cxd4 {[%clk 0:01:51.3]} 6... Bb4+
{[%clk 0:02:57.1]} 7. Bd2 {[%clk 0:01:51.8]} 7... Bxd2+ {[%clk 0:02:57.4]} 8.
Nbxd2 {[%clk 0:01:52.4]} 8... d5 {[%clk 0:02:57.6]} 9. exd5 {[%clk 0:01:52.5]}
9... Nxd5 {[%clk 0:02:58.5]} 10. O-O {[%clk 0:01:53]} 10... O-O {[%clk
0:02:57.7]} 11. Rc1 {[%clk 0:01:50.9]} 11... Bg4 {[%clk 0:02:55.4]} 12. h3
{[%clk 0:01:47.5]} 12... Bh5 {[%clk 0:02:55.3]} 13. Re1 {[%clk 0:01:48]} 13...
Nb6 {[%clk 0:02:21.6]} 14. Ba6 {[%clk 0:01:47.6]} 14... Nxd4 {[%clk 0:01:54]}
15. Bxb7 {[%clk 0:01:46.5]} 15... Rb8 {[%clk 0:01:54.2]} 16. Rc5 {[%clk
0:01:29.7]} 16... Bg6 {[%clk 0:01:38.1]} 17. Be4 {[%clk 0:01:25.6]} 17... Nxf3+
{[%clk 0:01:32.7]} 18. Bxf3 {[%clk 0:01:20.1]} 18... Qd4 {[%clk 0:01:23]} 19.
Qc1 {[%clk 0:01:15.1]} 19... Rbd8 {[%clk 0:00:48.9]} 20. Nb3 {[%clk 0:01:13]}
20... Qa4 {[%clk 0:00:46.9]} 21. Ra5 {[%clk 0:01:10.4]} 21... Qb4 {[%clk
0:00:31.7]} 22. Rxa7 {[%clk 0:01:06.1]} 22... c5 {[%clk 0:00:28]} 23. Qc3 {[%clk
0:00:55.5]} 23... Qxc3 {[%clk 0:00:26.1]} 24. bxc3 {[%clk 0:00:55.1]} 24... Rd3
{[%clk 0:00:20.7]} 25. Rc1 {[%clk 0:00:39.8]} 25... c4 {[%clk 0:00:19.4]} 26.
Nc5 {[%clk 0:00:39.5]} 26... Rd2 {[%clk 0:00:16.7]} 27. a4 {[%clk 0:00:39]}
27... Ra2 {[%clk 0:00:15.2]} 28. a5 {[%clk 0:00:38.9]} 28... Na4 {[%clk
0:00:12.5]} 29. Nxa4 {[%clk 0:00:37.1]} 29... Rxa4 {[%clk 0:00:13.4]} 30. a6
{[%clk 0:00:31.5]} 30... Rb8 {[%clk 0:00:10.4]} 31. Rb7 {[%clk 0:00:19]} 31...
Ra8 {[%clk 0:00:06.9]} 32. Rb4 {[%clk 0:00:19.1]} 32... R8xa6 {[%clk 0:00:01.1]}
1-0